[Event "Nakhchivan Open 2022"]
[Site "Nakhchivan"]
[Date "2022.05.12"]
[Round "6.5"]
[White "Mammadov, Zaur"]
[Black "Ahmadov, Fariz"]
[Result "1/2-1/2"]
[ECO "C41"]
[WhiteElo "2410"]
[BlackElo "2182"]
[Annotator "TA"]
[PlyCount "77"]
[EventDate "2022.05.08"]
[EventType "swiss"]
[EventCountry "AZE"]
[SourceTitle "playchess.com"]
[Source "ChessBase"]
[SourceQuality "1"]
[TimeControl "5400+30"]

{[%evp 12,77,20,20,40,40,40,40,39,33,58,39,39,45,47,30,19,25,28,30,27,7,7,5,4,9,11,8,11,18,19,0,0,0,0,0,3,5,5,6,16,0,0,0,2,0,0,0,0,0,0,0,0,0,0,0,0,0,0,0,0,0,0,0,0,0,0,0]} 1. e4 {[%emt 0:00:03]} e5 {[%emt 0:00:09]} 2. Nf3 {[%emt 0:00:07]} d6 {[%emt 0:00:01]} 3. d4 {[%emt 0:00:08]} exd4 {[%emt 0:00:28]} 4. Nxd4 {[%emt 0:00:02]} Nf6 {[%emt 0:00:07]} 5. Nc3 {[%emt 0:00:07]} Be7 {[%emt 0:00:04]} 6. Be2 {[%emt 0:01:06][%cal Bf1e2,Be2f3,Bf3g2][%mdl 32]} O-O {[%emt 0:00:08]} 7. O-O {[%emt 0:00:01]} c5 {[%emt 0:01:24] C41: Philidor Defence.} 8. Nf5 {[%emt 0:06:08]} Bxf5 {[%emt 0:05:33]} 9. exf5 {[%emt 0:00:30]} Nc6 {[%emt 0:00:05] White is slightly better.} 10. Bf3 {[%emt 0:01:31]} Nd4 {[%emt 0:01:23]} 11. g4 {[%emt 0:04:58][%cal Bg2g4,Bg4g5][%mdl 32] [#]} d5 $146 {[%emt 0:13:44]} ({Predecessor:} 11... Nxf3+ 12. Qxf3 h6 13. Nd5 Nxd5 14. Qxd5 Bf6 15. c3 Re8 16. Qxb7 d5 17. Bf4 Re4 {0-1 (57) Melekhina,A (2263)-Sapozhnikov,R (2295) Toronto 2011}) 12. Bg2 {[%emt 0:03:12]} h6 {[%emt 0:00:29] Prevents Bg5.} 13. f4 {[%emt 0:04:57] Hoping for g5.} Re8 {[%emt 0:04:23]} 14. g5 {[%emt 0:07:03]} Ne4 {[%emt 0:00:16][%cal Rh6g5]} 15. f6 {[%emt 0:00:56]} gxf6 {[%emt 0:07:16]} 16. Nxe4 {[%emt 0:16:11]} dxe4 {[%emt 0:00:15] The position is equal.} 17. c3 {[%emt 0:02:34]} Nf3+ {[%emt 0:13:32]} 18. Bxf3 {[%emt 0:00:03]} exf3 {[%emt 0:00:06]} 19. Qxf3 {[%emt 0:00:11]} fxg5 {[%emt 0:00:22]} (19... hxg5 $2 20. fxg5 c4 21. gxf6 Qb6+ 22. Kg2 Bxf6 23. Qxf6 $18) 20. fxg5 {[%emt 0:01:20]} Bxg5 {[%emt 0:00:09]} 21. Bxg5 {[%emt 0:05:49]} Qxg5+ {[%emt 0:00:06]} 22. Kh1 {[%emt 0:00:01]} Kh8 {[%emt 0:03:40]} 23. Rg1 {[%emt 0:00:39]} Qe5 {[%emt 0:03:18]} 24. Rae1 {[%emt 0:00:15]} Qd6 {[%emt 0:00:42]} (24... Qxe1 $2 {gets mated.} 25. Qf6+ Kh7 26. Qg7#) 25. Qxb7 {[%emt 0:04:26]} Rg8 {[%emt 0:02:06]} 26. Rd1 {[%emt 0:03:01]} Rxg1+ {[%emt 0:02:00]} 27. Rxg1 $11 {[%emt 0:03:02][%mdl 4096] Endgame KQR-KQR} Rd8 {[%emt 0:03:00]} 28. Rf1 {[%emt 0:04:29]} f5 {[%emt 0:07:57][%cal Bf7f5,Bf5e4][%mdl 32]} 29. c4 {[%emt 0:04:24]} Qd3 {[%emt 0:01:38][%csl LRc4,LRf1][%cal Rd3f1] [#]} 30. Rg1 {[%emt 0:06:39][%csl Gg1][%cal Rb7g7,Bf1g1,Bg1g6,Bg6e6][%mdl 32]} Qe4+ {[%emt 0:00:37]} 31. Qxe4 {[%emt 0:00:06]} fxe4 {[%emt 0:00:01] KR-KR} 32. Rg6 {[%emt 0:00:10]} Kh7 {[%emt 0:06:37]} 33. Re6 {[%emt 0:02:47]} Rd1+ {[%emt 0:00:10]} 34. Kg2 {[%emt 0:00:02]} Rd2+ {[%emt 0:00:07]} 35. Kg3 {[%emt 0:00:07]} Rxb2 {[%emt 0:00:07]} 36. Rxe4 {[%emt 0:00:56]} Rxa2 {[%emt 0:00:22]} 37. Re5 {[%emt 0:00:21]} Rc2 {[%emt 0:00:42]} 38. Rxc5 {[%emt 0:00:07]} a5 {[%emt 0:00:07]} 39. Rxa5 {[%emt 0:01:25] Weighted Error Value: White=0.03 (flawless) /Black=0.02 (flawless)} 1/2-1/2

[Event "Nakhchivan Open 2022"]
[Site "Nakhchivan"]
[Date "2022.05.12"]
[Round "6.6"]
[White "Asgari, Morteza"]
[Black "Novruzov, Emin"]
[Result "1-0"]
[ECO "C63"]
[WhiteElo "2244"]
[BlackElo "1981"]
[Annotator "TA"]
[PlyCount "85"]
[EventDate "2022.05.08"]
[EventType "swiss"]
[EventCountry "AZE"]
[SourceTitle "playchess.com"]
[Source "ChessBase"]
[SourceQuality "1"]
[TimeControl "5400+30"]

{[%evp 16,85,41,56,97,93,94,107,138,121,125,129,129,133,172,181,195,187,187,187,189,169,177,160,184,168,174,174,177,165,172,171,168,177,170,164,166,0,178,163,174,169,169,155,143,157,185,184,197,197,200,169,218,210,226,229,258,260,242,239,291,303,330,323,797,767,859,622,820,792,1224,1172]} 1. e4 {[%emt 0:00:04]} e5 {[%emt 0:00:38]} 2. Nf3 {[%emt 0:01:23]} Nc6 {[%emt 0:00:13]} 3. Bb5 {[%emt 0:00:30]} f5 {[%emt 0:00:28]} 4. d3 {[%emt 0:00:20]} fxe4 {[%emt 0:01:51]} 5. dxe4 {[%emt 0:00:52]} Nf6 {[%emt 0:00:08]} 6. O-O {[%emt 0:00:28]} Bc5 {[%emt 0:02:05]} 7. Bxc6 {[%emt 0:00:22]} bxc6 {[%emt 0:00:34]} 8. Nxe5 {[%emt 0:00:19]} O-O {[%emt 0:01:27]} 9. Nc3 {[%emt 0:00:14]} Qe8 {[%emt 0:02:34] C63: Ruy Lopez: Schliemann/Jaenisch Defence.} 10. Nd3 {[%emt 0:05:02] Black must now prevent e5. White is more active.} Bd4 {[%emt 0:04:31] Inhibits e5.} 11. e5 {[%emt 0:08:18]} Bxe5 {[%emt 0:26:24] [#] White is better.} 12. Re1 $1 {[%emt 0:02:27]} d6 {[%emt 0:00:30]} 13. Nxe5 {[%emt 0:02:17]} dxe5 {[%emt 0:00:12] [#]} 14. Bf4 $146 {[%emt 0:03:07][%cal Bc1f4,Bf4g3,Bg3e5][%mdl 32]} ({Predecessor:} 14. Qe2 Qg6 15. Ne4 Nxe4 16. Qxe4 Bf5 17. Qc4+ Kh8 18. c3 Rae8 19. Qh4 Re6 20. f3 {1-0 (48) Tay,B (1796)-Jiang,B (1954) Chess.com INT 2021}) 14... Ng4 {[%emt 0:04:08]} 15. Bg3 {[%emt 0:00:50]} Qg6 {[%emt 0:04:55]} 16. f3 {[%emt 0:07:43]} Nf6 {[%emt 0:09:21]} 17. Bxe5 {[%emt 0:04:11]} Bf5 {[%emt 0:04:42]} 18. Bxc7 {[%emt 0:07:15]} Rac8 {[%emt 0:09:56]} 19. Re7 {[%emt 0:08:20]} Bxc2 {[%emt 0:03:22]} 20. Qd6 {[%emt 0:03:36]} Ne8 {[%emt 0:09:25]} 21. Qxg6 {[%emt 0:02:18]} Bxg6 {[%emt 0:00:07]} 22. Be5 {[%emt 0:03:53]} Rf7 {[%emt 0:00:10]} 23. Rxf7 {[%emt 0:00:27]} Kxf7 {[%emt 0:00:49]} 24. Rd1 {[%emt 0:00:43] Against Rd8} Ke6 {[%emt 0:02:43]} 25. Re1 {[%emt 0:02:00]} Kf7 {[%emt 0:01:03]} 26. Rd1 {[%emt 0:05:00]} Ke6 $1 {[%emt 0:00:16]} 27. f4 {[%emt 0:00:17]} h5 {[%emt 0:03:18]} 28. Kf2 {[%emt 0:02:41]} Nf6 {[%emt 0:01:37]} 29. Bxf6 {[%emt 0:01:31]} gxf6 $18 {[%emt 0:00:14][%mdl 4096] Endgame KRB-KRN} 30. Rd4 {[%emt 0:00:51]} Rb8 {[%emt 0:01:04]} 31. b3 {[%emt 0:01:04]} Rb7 {[%emt 0:01:10]} 32. Rc4 {[%emt 0:04:10]} Kd6 {[%emt 0:02:39]} 33. Kf3 {[%emt 0:01:43]} Rb6 {[%emt 0:03:12]} (33... Rd7 $142 34. Ne4+ Ke7) 34. h3 {[%emt 0:02:50][%cal Bh2h3,Bh3g4,Bg4g5][%mdl 32]} Bf7 {[%emt 0:00:14]} 35. Ra4 {[%emt 0:00:51]} Rb7 {[%emt 0:00:35]} 36. g4 {[%emt 0:04:30]} hxg4+ {[%emt 0:01:06]} 37. hxg4 {[%emt 0:00:28]} ({Don't do} 37. Kxg4 $6 Be6+ 38. f5 Bd5) 37... Bd5+ {[%emt 0:00:37]} 38. Nxd5 {[%emt 0:00:35]} cxd5 {[%emt 0:00:16]} 39. Ra6+ {[%emt 0:00:20]} Kc5 $2 {[%emt 0:00:37] [#]} (39... Ke7 40. Ke3 Kf7) 40. Rxf6 {[%emt 0:01:01] White is clearly winning.} Re7 {[%emt 0:00:09]} 41. Rf5 {[%emt 0:01:01]} Kd6 {[%emt 0:00:18]} 42. g5 {[%emt 0:00:53]} d4 {[%emt 0:00:43]} 43. Re5 {[%emt 0:00:11] Weighted Error Value: White=0.16 (very precise) /Black=0.17 (very precise)} 1-0

[Event "Nakhchivan Open 2022"]
[Site "Nakhchivan"]
[Date "2022.05.12"]
[Round "7.1"]
[White "Shahaliyev, Ismayil"]
[Black "Lorparizangeneh, Shahin"]
[Result "1-0"]
[ECO "A40"]
[WhiteElo "2386"]
[BlackElo "2502"]
[Annotator "TA"]
[PlyCount "103"]
[EventDate "2022.05.08"]
[EventType "swiss"]
[EventCountry "AZE"]
[SourceTitle "playchess.com"]
[Source "ChessBase"]
[SourceQuality "1"]
[TimeControl "5400+30"]

{[%evp 11,103,0,10,12,17,27,20,19,16,19,31,21,47,35,44,39,35,39,59,52,55,55,54,58,50,54,59,56,60,60,65,59,67,56,75,68,84,84,81,81,85,85,84,85,100,100,100,81,105,100,100,100,100,100,100,100,100,100,100,100,119,121,557,557,550,546,533,152,148,138,642,616,759,759,975,969,962,962,932,922,902,894,850,874,769,658,5900,5900,3351,1127,6287,5816,4810,1936]} 1. d4 {[%emt 0:03:53]} Nf6 {[%emt 0:00:43]} 2. c4 {[%emt 0:00:09]} e6 {[%emt 0:00:10]} 3. g3 {[%emt 0:00:07]} d5 {[%emt 0:01:36]} 4. Nf3 {[%emt 0:00:16]} Bb4+ {[%emt 0:01:08]} 5. Bd2 {[%emt 0:00:13]} a5 {[%emt 0:00:22]} 6. Bg2 {[%emt 0:00:56]} dxc4 {[%emt 0:03:39]} 7. Qc2 {[%emt 0:00:27] E04: Open Catalan: 5 Nf3.} Bxd2+ {[%emt 0:01:40]} 8. Qxd2 {[%emt 0:00:16]} c6 {[%emt 0:00:52]} 9. a4 {[%emt 0:02:02][%mdl 1024] White has compensation. The position is equal.} Ne4 {[%emt 0:01:03]} 10. Qf4 {[%emt 0:00:03]} Nd6 {[%emt 0:00:43] was the old line (10...Qb6).} 11. O-O {[%emt 0:01:52]} Na6 {[%emt 0:01:36][%cal Bb8a6,Ba6b4,Bb4d5][%mdl 32]} 12. Na3 {[%emt 0:00:39]} Nb4 {[%emt 0:02:54]} 13. Ne5 {[%emt 0:00:22]} O-O {[%emt 0:01:22]} 14. Rfd1 {[%emt 0:00:08]} Nd5 {[%emt 0:05:11]} 15. Qc1 {[%emt 0:00:59]} Nb6 {[%emt 0:00:25]} 16. Naxc4 {[%emt 0:07:58]} Ndxc4 {[%emt 0:03:37]} 17. Nxc4 {[%emt 0:00:07]} Nxc4 {[%emt 0:00:08]} 18. Qxc4 {[%emt 0:00:03]} Ra6 {[%emt 0:01:00] [#]} 19. Rab1 $146 {[%emt 0:15:29]} ({Predecessor:} 19. Qc5 Rb6 20. Qxa5 Rxb2 21. Qc3 Qb6 22. e3 Rd8 23. a5 Qb4 24. Qxb4 Rxb4 25. Rdc1 {½-½ (39) Donchenko,A (2570)-Pogonina,N (2454) Caleta 2016}) 19... Rb6 {[%emt 0:19:49]} 20. b4 {[%emt 0:01:33]} axb4 {[%emt 0:00:14]} 21. Rxb4 {[%emt 0:00:03]} Ra6 {[%emt 0:01:26]} 22. Qb3 {[%emt 0:13:05]} Qe7 {[%emt 0:08:43]} 23. Rc1 {[%emt 0:01:48]} Rd8 {[%emt 0:01:46]} 24. Rc5 {[%emt 0:01:40]} h6 {[%emt 0:02:30]} 25. e3 {[%emt 0:00:27]} Qc7 {[%emt 0:01:00]} 26. h4 {[%emt 0:07:09]} Ra5 {[%emt 0:00:26] [#]} 27. Rbb5 $1 {[%emt 0:00:48]} Ra7 {[%emt 0:06:13]} (27... Ra6 28. Rc3) 28. a5 {[%emt 0:03:34]} Ra6 {[%emt 0:22:08]} 29. Rb6 {[%emt 0:05:43]} Ra7 {[%emt 0:01:29]} 30. Be4 {[%emt 0:02:39]} Bd7 {[%emt 0:01:08]} 31. Qb4 {[%emt 0:03:20]} Rda8 {[%emt 0:00:28]} 32. Kg2 {[%emt 0:01:01]} Bc8 {[%emt 0:00:36]} 33. Bd3 {[%emt 0:00:25]} Qe7 {[%emt 0:01:46]} 34. Qc3 {[%emt 0:01:31] White is much more active.} Qd8 {[%emt 0:01:25]} 35. Kg1 {[%emt 0:00:21]} Qe7 {[%emt 0:00:15]} 36. a6 {[%emt 0:03:11]} bxa6 $2 {[%emt 0:01:39][%mdl 8192]} (36... Qd8 $16 37. Qb2 bxa6) 37. Rbxc6 $18 {[%emt 0:02:12]} Bd7 {[%emt 0:04:07] [#]} 38. Rc8+ {[%emt 0:01:03][%mdl 512]} Be8 {[%emt 0:00:26] [#]} 39. Be4 {[%emt 0:00:44] Inhibits Qb7.} (39. Bc2 $1 $18 {and the rest is easy.}) 39... Rxc8 $16 {[%emt 0:00:21]} 40. Rxc8 {[%emt 0:00:09]} Rd7 $2 {[%emt 0:00:56][%mdl 8192] A mistake that costs the game.} (40... f5 $16) 41. Qa5 $18 {[%emt 0:02:11] White is clearly winning.} Rd6 {[%emt 0:01:14]} 42. Qc7 {[%emt 0:01:14]} Kf8 {[%emt 0:00:35]} 43. Bc6 {[%emt 0:00:33]} Rxc6 {[%emt 0:00:11]} 44. Qxc6 {[%emt 0:00:03][%mdl 4096] Endgame KQR-KQB} a5 {[%emt 0:00:05]} 45. Qa8 {[%emt 0:00:31]} Qd7 {[%emt 0:00:13]} 46. Rd8 {[%emt 0:00:18]} Qb5 {[%emt 0:00:12]} 47. Rb8 {[%emt 0:02:11]} Qa4 {[%emt 0:00:26]} 48. Qa7 {[%emt 0:02:28] Black must now prevent Qc5+.} g6 {[%emt 0:01:07]} 49. Qc5+ {[%emt 0:10:43]} Kg7 {[%emt 0:00:05]} 50. Qe5+ {[%emt 0:00:20]} ({Stronger than} 50. Qe7 Qd1+ 51. Kh2 Qf3 $11) (50. Qc8 $142 Kf8 51. Kg2) 50... Kh7 {[%emt 0:00:34]} 51. d5 {[%emt 0:00:18]} Qd1+ {[%emt 0:02:08]} 52. Kg2 {[%emt 0:00:03] Weighted Error Value: White=0.22 (precise) /Black=0.49} 1-0

[Event "Nakhchivan Open 2022"]
[Site "Nakhchivan"]
[Date "2022.05.12"]
[Round "7.2"]
[White "Haznedaroglu, Kivanc"]
[Black "Rasulov, Vugar"]
[Result "0-1"]
[ECO "B20"]
[WhiteElo "2425"]
[BlackElo "2445"]
[Annotator "TA"]
[PlyCount "74"]
[EventDate "2022.05.08"]
[EventType "swiss"]
[EventCountry "AZE"]
[SourceTitle "playchess.com"]
[Source "ChessBase"]
[SourceQuality "1"]
[TimeControl "5400+30"]

{[%evp 9,74,16,6,29,24,23,24,26,41,38,36,15,14,20,0,25,25,0,0,0,0,-54,-49,-94,-94,-117,-104,-95,-95,-107,-80,-116,-103,-114,-103,-120,-70,-89,-95,-81,-85,-70,-102,-64,-72,-78,-105,-849,-848,-841,-833,-795,-785,-785,-785,-29967,-29969,-29942,-12810,-6712,-6191,-29980,-29981,-29990,-29991,-29991,-29981]} 1. e4 {[%emt 0:00:03]} c5 {[%emt 0:00:24]} 2. b3 {[%emt 0:00:09]} a6 {[%emt 0:00:57]} 3. Bb2 {[%emt 0:00:21]} Nc6 {[%emt 0:00:06]} 4. f4 {[%emt 0:00:35]} d5 {[%emt 0:03:25]} 5. exd5 {[%emt 0:07:51]} Qxd5 {[%emt 0:00:15]} 6. Nc3 {[%emt 0:00:28] B20: Sicilian: Unusual White 2nd moves.} Qd8 {[%emt 0:00:22]} 7. Nf3 {[%emt 0:00:21]} Nf6 {[%emt 0:00:14]} 8. g3 {[%emt 0:03:14] [#] White has an edge.} g6 $146 {[%emt 0:04:20]} ({Predecessor:} 8... e6 9. Bg2 Qc7 10. Qe2 Be7 11. O-O-O O-O 12. Ne4 Nd7 13. Kb1 Re8 14. h4 b5 15. Nfg5 Nf8 16. Qh5 Bxg5 17. hxg5 c4 18. Nf6+ gxf6 19. gxf6 {1-0 (19) Sulskis,G (2228)-Hyseni,J Plovdiv 2010}) 9. Bg2 {[%emt 0:01:24]} Bg7 {[%emt 0:02:49]} 10. O-O {[%emt 0:01:38]} O-O {[%emt 0:00:33]} 11. Na4 {[%emt 0:03:13]} c4 {[%emt 0:06:21]} 12. Ne5 {[%emt 0:02:19]} (12. bxc4 Qa5 $14) 12... Nxe5 {[%emt 0:00:42]} 13. Bxe5 {[%emt 0:00:09]} Bg4 {[%emt 0:01:27]} 14. Qe1 {[%emt 0:01:15]} b5 {[%emt 0:03:21]} 15. Nc3 {[%emt 0:04:41]} (15. Nc5 $11) 15... Rc8 $15 {[%emt 0:00:41]} 16. bxc4 {[%emt 0:08:00]} Rxc4 {[%emt 0:00:47]} 17. h3 {[%emt 0:00:21]} Be6 {[%emt 0:01:01]} 18. a3 {[%emt 0:07:04]} h5 {[%emt 0:02:14] Against g4} 19. Kh2 {[%emt 0:02:03]} Qd7 {[%emt 0:04:34]} 20. Rf3 {[%emt 0:08:19]} Bf5 $1 {[%emt 0:01:20]} 21. Rc1 {[%emt 0:03:00]} Rfc8 {[%emt 0:01:02] Black is more active.} 22. Re3 {[%emt 0:02:45]} a5 {[%emt 0:16:07]} (22... R4c5 $17) 23. Bxf6 {[%emt 0:17:18]} Bxf6 {[%emt 0:00:10]} 24. Nd5 {[%emt 0:00:01][%cal Re3e7]} Rxc2 {[%emt 0:01:12]} 25. Rxe7 {[%emt 0:00:06]} Bxe7 {[%emt 0:01:33]} (25... Rxc1 $2 26. Nxf6+ Kh8 27. Qe5 (27. Nxd7 Rxe1 28. Rxe1 Bxd7 $17) 27... Qxe7 28. Qxe7 $18) 26. Nxe7+ {[%emt 0:00:10]} Kh7 {[%emt 0:01:26]} 27. Nxc8 {[%emt 0:00:12] And now Rxc2 would win.} Rxd2 {[%emt 0:04:03]} (27... Rxc8 28. Rxc8 Qxc8 29. d4 $11) 28. g4 $2 {[%emt 0:21:44][%mdl 8192] [#] Loses the game.} (28. Kh1 $17) 28... Qd5 $1 $19 {[%emt 0:02:55][%csl Gd2][%cal Rd5g2]} ({And not} 28... hxg4 29. hxg4 Bxg4 30. Kh1 $11) 29. Qg3 {[%emt 0:00:44]} Be4 {[%emt 0:00:11][%cal Re4g2]} 30. Rg1 {[%emt 0:00:01]} Bxg2 {[%emt 0:02:04]} ({Worse is} 30... Qb7 31. Qe3 Rxg2+ 32. Rxg2 Bxg2 33. Nd6 $11) 31. Rxg2 {[%emt 0:01:06] [#]} b4 $1 {[%emt 0:00:08][%cal Bb5b4,Bb4b3,Bb3b2][%mdl 32]} 32. Rxd2 {[%emt 0:01:54]} Qxd2+ {[%emt 0:00:09]} 33. Kg1 {[%emt 0:00:01]} Qc1+ {[%emt 0:00:40]} (33... Qd1+ $142 34. Kf2 Qc2+ 35. Ke3 bxa3 36. Qe1 a2 37. Nd6 Qb3+ 38. Kd4 Qb2+ 39. Kd5 a1=Q 40. Qxa1 Qxa1 41. g5 Qa2+ 42. Nc4 Qg2+ 43. Kd4 Qxh3 44. Nd6 a4 45. Ne4 a3 46. Nc3 Qd7+ 47. Ke3 Qe6+ 48. Kd4 a2 49. Nxa2 Qxa2 50. Kc5 h4 51. Kd4 h3 52. Kc5 h2 53. Kb6 h1=Q 54. f5 Qa4 55. fxg6+ fxg6 56. Kc7 Qhc6+ 57. Kd8 Qd7#) 34. Kf2 {[%emt 0:00:08]} Qc2+ {[%emt 0:00:21]} 35. Ke1 {[%emt 0:00:20]} b3 {[%emt 0:00:35] Black mates.} 36. gxh5 {[%emt 0:00:07]} b2 {[%emt 0:00:20][%cal Rb2b1]} 37. hxg6+ {[%emt 0:00:05]} Qxg6 {[%emt 0:00:03] Weighted Error Value: White=0.69/Black=0.25 (precise)} ({Weaker is} 37... fxg6 38. Qh4+ Kg8 39. Qd8+ Kh7 40. Qh4+ Kg8 41. Qd8+ Kh7 42. Qe7+ Kh8 43. Qf8+ Kh7 44. Qe7+ Kh8 45. Qh4+ Kg8 $11) 0-1

[Event "Nakhchivan Open 2022"]
[Site "Nakhchivan"]
[Date "2022.05.12"]
[Round "7.3"]
[White "Ahmadov, Fariz"]
[Black "Mammadov, Sadig"]
[Result "1-0"]
[ECO "D02"]
[WhiteElo "2182"]
[BlackElo "2265"]
[Annotator "TA"]
[PlyCount "149"]
[EventDate "2022.05.08"]
[EventType "swiss"]
[EventCountry "AZE"]
[SourceTitle "playchess.com"]
[Source "ChessBase"]
[SourceQuality "1"]
[TimeControl "5400+30"]

{[%evp 10,149,47,44,57,46,58,44,70,69,74,66,63,66,68,69,91,81,93,102,118,53,58,13,2,0,0,-8,-14,-20,-12,-38,-36,-39,-15,-11,53,38,54,43,54,53,53,56,56,56,43,25,51,23,25,21,35,24,50,51,51,49,68,40,68,68,81,36,53,54,82,58,93,0,79,0,97,101,101,100,99,98,96,31,1085,618,852,358,323,372,371,364,352,336,658,250,250,252,626,607,619,608,6195,220,293,176,172,0,29955,29955,29946,5418,29966,29968,29968,29968,29967,29967,29969,0,29966,29967,29969,29971,29971,29970,29970,29971,29971,29972,29969,29964,29961,12689,29976,29977,29977,29978,29980,29981,29981,29982,29982,29983,29983,29984]} 1. d4 {[%emt 0:00:30]} d5 {[%emt 0:09:47]} 2. Nf3 {[%emt 0:00:29]} Nf6 {[%emt 0:00:14]} 3. Bf4 {[%emt 0:00:04]} g6 {[%emt 0:01:16]} 4. e3 {[%emt 0:00:54]} Bg7 {[%emt 0:00:11]} 5. c4 {[%emt 0:00:48]} e6 {[%emt 0:02:47]} 6. Nc3 {[%emt 0:00:32]} O-O {[%emt 0:00:20][%cal Oc7c5] D92: Grünfeld: 4 Nf3 Bg7 5 Bf4.} 7. Rc1 {[%emt 0:01:28]} a6 {[%emt 0:05:47]} 8. h3 {[%emt 0:05:05]} Nc6 {[%emt 0:06:26] White is slightly better.} 9. Be2 {[%emt 0:05:10][%cal Bf1e2,Be2c4,Bc4a2][%mdl 32]} dxc4 {[%emt 0:02:11]} 10. Bxc4 {[%emt 0:00:11] [#]} b6 $146 {[%emt 0:08:40]} ({Predecessor:} 10... b5 11. Bd3 Nb4 12. Bb1 Bb7 13. e4 Nc6 14. O-O Rc8 15. Qd2 Ne7 16. b4 Ne8 {1-0 (59) Bonte,A (1917)-Brown,S (1991) Bucharest 2019}) 11. O-O {[%emt 0:04:51]} Bb7 {[%emt 0:00:01]} 12. a3 {[%emt 0:00:33]} Rc8 {[%emt 0:06:19]} 13. Qe2 {[%emt 0:02:31]} b5 {[%emt 0:02:29]} 14. Ba2 {[%emt 0:00:16] White is more active.} Nd7 {[%emt 0:05:16]} 15. d5 {[%emt 0:08:37]} ({Better is} 15. Rfd1 $16) 15... exd5 $14 {[%emt 0:00:04]} 16. Nxd5 {[%emt 0:01:38] Threatens to win with Bg5.} Nce5 {[%emt 0:01:18]} 17. Nxe5 {[%emt 0:21:17]} Nxe5 {[%emt 0:01:55]} 18. Rfd1 {[%emt 0:00:13][%cal Od5b6] And now Nb6! would win.} c5 $1 {[%emt 0:03:18][%cal Bc7c5,Bc5c4][%mdl 32]} 19. Nc3 {[%emt 0:08:25]} Qe7 {[%emt 0:05:25]} 20. e4 {[%emt 0:14:19]} c4 {[%emt 0:00:57]} 21. Bb1 {[%emt 0:01:06] Prevents Nd3.} Qe6 {[%emt 0:10:29]} 22. Rd2 {[%emt 0:07:45]} Nd3 {[%emt 0:04:09]} (22... a5 $11) 23. Bxd3 {[%emt 0:00:12]} cxd3 {[%emt 0:00:02]} 24. Rxd3 {[%emt 0:00:48]} Bxc3 {[%emt 0:00:04]} 25. Rdxc3 {[%emt 0:00:28]} Rxc3 {[%emt 0:00:02]} 26. Rxc3 {[%emt 0:00:13]} Qxe4 {[%emt 0:00:13]} 27. Qxe4 {[%emt 0:00:24]} Bxe4 {[%emt 0:00:03][%mdl 4096] Endgame KRB-KRB} 28. f3 {[%emt 0:00:35]} Bd5 {[%emt 0:00:22]} 29. Rc5 {[%emt 0:00:10]} Be6 {[%emt 0:06:27]} 30. Rc6 {[%emt 0:00:27]} Ra8 {[%emt 0:01:04]} 31. Be5 {[%emt 0:00:56]} g5 {[%emt 0:06:06]} 32. Rb6 {[%emt 0:04:09]} h6 {[%emt 0:02:00]} 33. Kf2 {[%emt 0:00:12]} Kf8 {[%emt 0:05:59]} 34. Bb8 {[%emt 0:04:44]} Ke8 {[%emt 0:03:04]} 35. g4 {[%emt 0:00:43]} Kd7 {[%emt 0:00:29]} 36. f4 {[%emt 0:00:57]} gxf4 {[%emt 0:02:00]} 37. Bxf4 {[%emt 0:00:04]} Rh8 {[%emt 0:00:29]} 38. Rd6+ {[%emt 0:01:46]} Kc8 {[%emt 0:00:00]} 39. Rb6 {[%emt 0:02:58]} Kd7 $1 {[%emt 0:00:25]} 40. Rd6+ {[%emt 0:01:29]} Kc8 $1 {[%emt 0:00:40]} 41. Rxa6 {[%emt 0:01:17]} Kb7 {[%emt 0:00:05] Against Ra8} 42. Rd6 {[%emt 0:00:03]} h5 {[%emt 0:00:14]} 43. Be5 {[%emt 0:00:10]} Rg8 {[%emt 0:00:47]} 44. Kg3 {[%emt 0:01:20]} ({White should try} 44. gxh5 $16 {[%cal Od6e6]} Rg5 45. Bg3) 44... Rg5 $2 {[%emt 0:01:27][%mdl 8192]} (44... hxg4 $14 45. h4 Rc8) 45. Kf4 {[%emt 0:01:08]} Rg8 {[%emt 0:01:05][%cal Rh5g4] [#]} 46. gxh5 {[%emt 0:00:19]} (46. Rxe6 $142 $1 {[%mdl 512] Hoping for Re7+.} fxe6 47. gxh5) 46... Bxh3 $18 {[%emt 0:00:15]} 47. h6 {[%emt 0:00:32]} Rg4+ {[%emt 0:00:02]} 48. Kf3 {[%emt 0:00:51]} Rh4 {[%emt 0:00:09]} 49. Bf4 {[%emt 0:00:19]} Be6 $2 {[%emt 0:00:53] [#]} (49... Bf5 50. Rd5 Rh3+ 51. Kg2 Rh5 52. Rxb5+ Kc6) 50. Ke4 $2 {[%emt 0:00:31]} (50. Rxe6 $1 {[%mdl 512]} fxe6 51. Bg5) 50... Rh5 {[%emt 0:00:15]} 51. Rd2 {[%emt 0:00:22] Rh2 is the strong threat.} Kc6 $2 {[%emt 0:01:26]} (51... Bf5+ 52. Ke5 Bg6+ 53. Kd6 Kb6) 52. Rc2+ {[%emt 0:00:49]} Kd7 {[%emt 0:00:11] aiming for ...Bf5+.} 53. Rh2 {[%emt 0:00:36]} Bg4 {[%emt 0:00:45]} 54. Rd2+ $2 {[%emt 0:00:35]} (54. Rxh5 {White wants to mate with Rc5.} Bxh5 55. Ke5) 54... Ke7 {[%emt 0:00:11]} 55. Rf2 {[%emt 0:00:22]} Ke6 {[%emt 0:00:33]} 56. Rh2 $2 {[%emt 0:00:30]} (56. Kd4 $18) 56... Rxh2 $4 {[%emt 0:00:40][%mdl 8192]} (56... Kd7 $11) 57. Bxh2 $11 {[%emt 0:00:03] KB-KB} Kf6 {[%emt 0:00:36]} 58. Kd5 {[%emt 0:00:16] Threatening mate with Bf4.} Be2 {[%emt 0:00:34]} 59. Bf4 {[%emt 0:00:57]} Bd3 {[%emt 0:00:21]} 60. Kd4 {[%emt 0:00:25]} Bc2 {[%emt 0:00:25]} 61. Kc5 {[%emt 0:00:12]} Bd3 {[%emt 0:00:08]} 62. Kd4 {[%emt 0:00:36]} Bc2 $1 {[%emt 0:00:10]} 63. Bd2 {[%emt 0:00:22]} Bb1 {[%emt 0:00:17]} 64. b3 {[%emt 0:00:37]} Bc2 {[%emt 0:00:19]} 65. Kc3 {[%emt 0:00:10]} Be4 {[%emt 0:00:20]} 66. Kb4 {[%emt 0:00:04]} Bd3 {[%emt 0:00:06]} 67. Kc5 {[%emt 0:00:21]} Ke6 {[%emt 0:02:22]} 68. Kc6 {[%emt 0:00:08]} Kf6 {[%emt 0:00:35]} 69. a4 {[%emt 0:00:26]} bxa4 {[%emt 0:00:08]} 70. bxa4 {[%emt 0:00:01][%cal Bb3a4,Ba4a5,Ba5a6,Ba6a7][%mdl 32] White mates.} Ke5 {[%emt 0:00:52]} 71. a5 {[%emt 0:00:25]} Bg6 {[%emt 0:00:24]} 72. a6 {[%emt 0:00:32]} Be4+ {[%emt 0:00:07]} 73. Kc7 {[%emt 0:00:07]} Kf6 {[%emt 0:00:11]} 74. a7 {[%emt 0:00:12]} Kg6 {[%emt 0:00:12]} 75. Kb8 {[%emt 0:00:11] Weighted Error Value: White=0.64/Black=0.42} 1-0